[Event "*** Titled Tuesday Blitz"]
[Site "Chess.com"]
[Date "2019.06.04"]
[Round "4"]
[White "MagnutssCarleson"]
[Black "MarcoRiehle"]
[Result "0-1"]
[WhiteElo "2289"]
[BlackElo "2540"]
[TimeControl "180+2"]
[EndTime "13:51:56 PDT"]
[Termination "MarcoRiehle won by checkmate"]

1. b3 {[%clk 0:03:01.9]} 1... e5 {[%clk 0:03:00.2]} 2. Bb2 {[%clk 0:03:02.7]}
2... Nc6 {[%clk 0:03:00.5]} 3. e3 {[%clk 0:03:04]} 3... Nf6 {[%clk 0:03:01.1]}
4. Bb5 {[%clk 0:03:05.4]} 4... Bd6 {[%clk 0:03:00.5]} 5. Na3 {[%clk 0:03:06.1]}
5... a6 {[%clk 0:02:59.9]} 6. Be2 {[%clk 0:03:06.6]} 6... Qe7 {[%clk 0:02:52.5]}
7. Nc4 {[%clk 0:03:07.2]} 7... Bc5 {[%clk 0:02:52.1]} 8. Nf3 {[%clk 0:02:53]}
8... e4 {[%clk 0:02:49]} 9. Nfe5 {[%clk 0:02:53.6]} 9... d5 {[%clk 0:02:46.3]}
10. Nxc6 {[%clk 0:02:50.9]} 10... bxc6 {[%clk 0:02:48.2]} 11. Ne5 {[%clk
0:02:50.5]} 11... Bd7 {[%clk 0:02:35.4]} 12. O-O {[%clk 0:02:47.9]} 12... Bd6
{[%clk 0:02:32.7]} 13. f4 {[%clk 0:02:44.9]} 13... exf3 {[%clk 0:02:29.3]} 14.
Nxf3 {[%clk 0:02:44]} 14... O-O {[%clk 0:02:28]} 15. Bd3 {[%clk 0:02:36]} 15...
Ne4 {[%clk 0:02:12.4]} 16. Qe1 {[%clk 0:02:26.4]} 16... c5 {[%clk 0:02:06.8]}
17. Qe2 {[%clk 0:02:15.4]} 17... c6 {[%clk 0:02:00.5]} 18. c4 {[%clk 0:02:03.8]}
18... a5 {[%clk 0:01:59.2]} 19. Bc2 {[%clk 0:01:57.5]} 19... Bg4 {[%clk
0:01:49.4]} 20. Qe1 {[%clk 0:01:41.3]} 20... Rae8 {[%clk 0:01:43.8]} 21. Kh1
{[%clk 0:01:29.7]} 21... Bb8 {[%clk 0:01:22.6]} 22. d3 {[%clk 0:01:11.4]} 22...
Nf6 {[%clk 0:01:10.3]} 23. e4 {[%clk 0:01:09.8]} 23... dxe4 {[%clk 0:01:09.4]}
24. dxe4 {[%clk 0:01:11.7]} 24... Nxe4 {[%clk 0:01:08.2]} 25. Qxa5 {[%clk
0:01:02.3]} 25... Qd6 {[%clk 0:00:44.9]} 26. Rad1 {[%clk 0:00:58.5]} 26... Qh6
{[%clk 0:00:44.9]} 27. h3 {[%clk 0:00:23]} 27... Ng3+ {[%clk 0:00:39.3]} 28. Kg1
{[%clk 0:00:23.2]} 28... Nxf1 {[%clk 0:00:27.3]} 29. Rxf1 {[%clk 0:00:25.1]}
29... Re2 {[%clk 0:00:19.6]} 30. Qc3 {[%clk 0:00:21.4]} 30... Bxf3 {[%clk
0:00:15.8]} 31. Rxf3 {[%clk 0:00:21.3]} 31... Be5 {[%clk 0:00:16.4]} 32. Qd3
{[%clk 0:00:14]} 32... Rd2 {[%clk 0:00:16.9]} 33. Bxe5 {[%clk 0:00:09.4]} 33...
Rxd3 {[%clk 0:00:17.3]} 34. Bxd3 {[%clk 0:00:11.3]} 34... f6 {[%clk 0:00:17.7]}
35. Bd6 {[%clk 0:00:12]} 35... Re8 {[%clk 0:00:18.2]} 36. Bxc5 {[%clk
0:00:12.9]} 36... Re1+ {[%clk 0:00:18]} 37. Kh2 {[%clk 0:00:13.2]} 37... Qg5
{[%clk 0:00:18.2]} 38. Bf2 {[%clk 0:00:13.4]} 38... Rd1 {[%clk 0:00:18.1]} 39.
Be4 {[%clk 0:00:13.9]} 39... Qc1 {[%clk 0:00:18.3]} 40. Bxc6 {[%clk 0:00:13.7]}
40... Rh1+ {[%clk 0:00:19.1]} 41. Kg3 {[%clk 0:00:14.8]} 41... Qg5# {[%clk
0:00:20.1]} 0-1

[Event "*** Titled Tuesday Blitz"]
[Site "Chess.com"]
[Date "2019.06.04"]
[Round "4"]
[White "cool4chess"]
[Black "lexiel"]
[Result "1-0"]
[WhiteElo "2339"]
[BlackElo "2186"]
[TimeControl "180+2"]
[EndTime "13:51:56 PDT"]
[Termination "cool4chess won by resignation"]

1. e4 {[%clk 0:03:01.9]} 1... c5 {[%clk 0:02:59.4]} 2. Nf3 {[%clk 0:03:03]} 2...
d6 {[%clk 0:02:59.7]} 3. d4 {[%clk 0:03:04.6]} 3... cxd4 {[%clk 0:03:00.1]} 4.
Nxd4 {[%clk 0:03:06.5]} 4... Nf6 {[%clk 0:03:01.4]} 5. Nc3 {[%clk 0:03:08.1]}
5... Nc6 {[%clk 0:03:02.6]} 6. Bg5 {[%clk 0:03:08.5]} 6... Bd7 {[%clk
0:03:02.1]} 7. Qd2 {[%clk 0:03:09.6]} 7... h6 {[%clk 0:03:00.7]} 8. Bxf6 {[%clk
0:03:07.8]} 8... gxf6 {[%clk 0:03:01.9]} 9. O-O-O {[%clk 0:03:08.8]} 9... a6
{[%clk 0:03:01.6]} 10. f4 {[%clk 0:03:09.5]} 10... e6 {[%clk 0:03:00]} 11. Kb1
{[%clk 0:02:59.5]} 11... Qb6 {[%clk 0:02:57.2]} 12. Nb3 {[%clk 0:02:50.2]} 12...
O-O-O {[%clk 0:02:54.3]} 13. Be2 {[%clk 0:02:38.9]} 13... h5 {[%clk 0:02:54.8]}
14. Rhf1 {[%clk 0:02:34.2]} 14... Kb8 {[%clk 0:02:53.2]} 15. f5 {[%clk
0:02:34.9]} 15... Be7 {[%clk 0:02:47.3]} 16. Qf4 {[%clk 0:02:25.6]} 16... Ne5
{[%clk 0:02:45.2]} 17. Nd4 {[%clk 0:02:24.6]} 17... Rc8 {[%clk 0:02:42.8]} 18.
Qe3 {[%clk 0:02:14.4]} 18... Nc4 {[%clk 0:02:26.5]} 19. Bxc4 {[%clk 0:02:14.8]}
19... Rxc4 {[%clk 0:02:28.4]} 20. fxe6 {[%clk 0:02:04.2]} 20... fxe6 {[%clk
0:02:28.5]} 21. Qd3 {[%clk 0:01:27.5]} 21... Rhc8 {[%clk 0:02:26.9]} 22. Ka1
{[%clk 0:01:28]} 22... Qb4 {[%clk 0:02:10.1]} 23. Nb3 {[%clk 0:01:15.1]} 23...
a5 {[%clk 0:02:03.5]} 24. a3 {[%clk 0:01:06.7]} 24... Qb6 {[%clk 0:02:03.6]} 25.
Nd2 {[%clk 0:01:00.3]} 25... R4c7 {[%clk 0:01:57]} 26. Rf3 {[%clk 0:00:55.5]}
26... d5 {[%clk 0:01:51.5]} 27. Ndb1 {[%clk 0:00:42.4]} 27... Bc6 {[%clk
0:01:41.3]} 28. exd5 {[%clk 0:00:42.9]} 28... exd5 {[%clk 0:01:41.9]} 29. Rh3
{[%clk 0:00:36.2]} 29... Bc5 {[%clk 0:01:39.4]} 30. Rxh5 {[%clk 0:00:33.3]}
30... d4 {[%clk 0:01:40.6]} 31. Ne4 {[%clk 0:00:34.6]} 31... Bxe4 {[%clk
0:01:37.8]} 32. Qxe4 {[%clk 0:00:36.5]} 32... Re7 {[%clk 0:01:35.2]} 33. Qd3
{[%clk 0:00:35.6]} 33... Re3 {[%clk 0:01:35.4]} 34. Qf5 {[%clk 0:00:35.9]} 34...
Rc6 {[%clk 0:01:29.9]} 35. Rh8+ {[%clk 0:00:36.2]} 35... Ka7 {[%clk 0:01:30.1]}
36. Rh3 {[%clk 0:00:37.5]} 36... Re8 {[%clk 0:01:27.3]} 37. Rb3 {[%clk 0:00:37]}
37... Qc7 {[%clk 0:01:27.8]} 38. g3 {[%clk 0:00:30.3]} 38... Bb6 {[%clk
0:01:28.8]} 39. Rd2 {[%clk 0:00:26.4]} 39... Re1 {[%clk 0:01:29]} 40. Ka2 {[%clk
0:00:27.8]} 40... Rc1 {[%clk 0:01:25.9]} 41. c3 {[%clk 0:00:18]} 41... dxc3
{[%clk 0:01:18.8]} 42. Nxc3 {[%clk 0:00:19.1]} 42... R6xc3 {[%clk 0:01:19.1]}
43. Rxc3 {[%clk 0:00:20.3]} 43... Rxc3 {[%clk 0:01:16.4]} 44. bxc3 {[%clk
0:00:21.7]} 44... Qxc3 {[%clk 0:01:17.9]} 45. Qc2 {[%clk 0:00:23.4]} 45... Qe3
{[%clk 0:01:14.8]} 46. Re2 {[%clk 0:00:24.8]} 46... Qd4 {[%clk 0:01:14.2]} 47.
Qb3 {[%clk 0:00:26.2]} 47... a4 {[%clk 0:01:15.1]} 48. Qb4 {[%clk 0:00:24.8]}
48... Qd5+ {[%clk 0:01:14.7]} 49. Kb1 {[%clk 0:00:24.8]} 49... Qd3+ {[%clk
0:01:14.8]} 50. Rc2 {[%clk 0:00:24.6]} 50... Qd7 {[%clk 0:01:13.6]} 51. Qc4
{[%clk 0:00:22.6]} 51... Qe8 {[%clk 0:01:12.4]} 52. Ka2 {[%clk 0:00:23.8]} 52...
Qd7 {[%clk 0:01:10.4]} 53. Re2 {[%clk 0:00:25.3]} 53... Qd1 {[%clk 0:01:09.8]}
54. Rc2 {[%clk 0:00:22.8]} 54... Bd4 {[%clk 0:01:10]} 55. Qxa4+ {[%clk
0:00:23.3]} 55... Kb8 {[%clk 0:01:09.1]} 56. Rc8+ {[%clk 0:00:24.3]} 56... Kxc8
{[%clk 0:01:10]} 57. Qxd1 {[%clk 0:00:25.9]} 1-0

[Event "*** Titled Tuesday Blitz"]
[Site "Chess.com"]
[Date "2019.06.04"]
[Round "4"]
[White "temus_galaktionov"]
[Black "iturrizaga"]
[Result "1-0"]
[WhiteElo "2715"]
[BlackElo "2923"]
[TimeControl "180+2"]
[EndTime "13:52:03 PDT"]
[Termination "temus_galaktionov won by resignation"]

1. d4 {[%clk 0:03:01.9]} 1... Nf6 {[%clk 0:03:00.6]} 2. Nf3 {[%clk 0:03:02.9]}
2... b6 {[%clk 0:03:01]} 3. g3 {[%clk 0:03:03]} 3... Bb7 {[%clk 0:03:02.3]} 4.
Bg2 {[%clk 0:03:04]} 4... g6 {[%clk 0:03:03.6]} 5. c4 {[%clk 0:03:04.8]} 5...
Bg7 {[%clk 0:03:04.9]} 6. Nc3 {[%clk 0:03:05.8]} 6... O-O {[%clk 0:03:05.9]} 7.
d5 {[%clk 0:03:05.8]} 7... e6 {[%clk 0:03:05.1]} 8. O-O {[%clk 0:03:06.6]} 8...
exd5 {[%clk 0:03:05.1]} 9. cxd5 {[%clk 0:03:07.7]} 9... Re8 {[%clk 0:03:07]} 10.
Nd4 {[%clk 0:03:06.6]} 10... Na6 {[%clk 0:03:07.2]} 11. Re1 {[%clk 0:03:01]}
11... Nc5 {[%clk 0:03:04.6]} 12. e4 {[%clk 0:02:48.1]} 12... d6 {[%clk
0:02:48.7]} 13. b4 {[%clk 0:02:28.4]} 13... Ncd7 {[%clk 0:02:48]} 14. Bb2 {[%clk
0:02:29.5]} 14... Ne5 {[%clk 0:02:44.8]} 15. Bf1 {[%clk 0:02:23]} 15... a5
{[%clk 0:02:11.9]} 16. a3 {[%clk 0:02:22.1]} 16... Nfd7 {[%clk 0:01:53.4]} 17.
f4 {[%clk 0:02:12.9]} 17... axb4 {[%clk 0:01:54]} 18. axb4 {[%clk 0:02:13.1]}
18... Rxa1 {[%clk 0:01:55.9]} 19. Bxa1 {[%clk 0:02:14.5]} 19... Ng4 {[%clk
0:01:56.8]} 20. Nc6 {[%clk 0:02:03.5]} 20... Bxc6 {[%clk 0:01:43.3]} 21. dxc6
{[%clk 0:01:57.2]} 21... Ndf6 {[%clk 0:01:44.4]} 22. h3 {[%clk 0:01:58.4]} 22...
Nh6 {[%clk 0:01:43.6]} 23. g4 {[%clk 0:01:59.4]} 23... Nfxg4 {[%clk 0:01:39.7]}
24. hxg4 {[%clk 0:01:59.6]} 24... Qh4 {[%clk 0:01:41.2]} 25. Qd2 {[%clk
0:01:42]} 25... Qg3+ {[%clk 0:01:07.9]} 26. Bg2 {[%clk 0:01:30.2]} 26... Nxg4
{[%clk 0:00:44.2]} 27. Nd5 {[%clk 0:00:59.5]} 27... Bxa1 {[%clk 0:00:24.1]} 28.
Rxa1 {[%clk 0:00:58.4]} 28... Rxe4 {[%clk 0:00:15.9]} 29. Qc3 {[%clk 0:00:56]}
29... Qxc3 {[%clk 0:00:06.9]} 30. Nxc3 {[%clk 0:00:56.2]} 30... Rxb4 {[%clk
0:00:04.2]} 31. Nd5 {[%clk 0:00:57.1]} 31... Rc4 {[%clk 0:00:05]} 32. Nxc7
{[%clk 0:00:57]} 32... Ne3 {[%clk 0:00:06]} 33. Bh1 {[%clk 0:00:52.9]} 33... Rc5
{[%clk 0:00:05.2]} 34. Na6 {[%clk 0:00:48.2]} 34... Rc2 {[%clk 0:00:04.4]} 35.
Re1 {[%clk 0:00:45]} 35... Nf5 {[%clk 0:00:02.8]} 36. c7 {[%clk 0:00:44]} 36...
Kf8 {[%clk 0:00:03.3]} 37. Be4 {[%clk 0:00:39.6]} 37... Rc3 {[%clk 0:00:02.5]}
38. Bxf5 {[%clk 0:00:37.2]} 38... gxf5 {[%clk 0:00:04.4]} 39. Rb1 {[%clk
0:00:37.3]} 39... Ke7 {[%clk 0:00:03.6]} 40. Rxb6 {[%clk 0:00:38.2]} 1-0

[Event "*** Titled Tuesday Blitz"]
[Site "Chess.com"]
[Date "2019.06.04"]
[Round "4"]
[White "slowdgehammer"]
[Black "LuisFSiles"]
[Result "0-1"]
[WhiteElo "2362"]
[BlackElo "2175"]
[TimeControl "180+2"]
[EndTime "13:52:05 PDT"]
[Termination "LuisFSiles won by checkmate"]

1. Nf3 {[%clk 0:03:01.9]} 1... Nf6 {[%clk 0:02:59]} 2. c4 {[%clk 0:03:02.7]}
2... g6 {[%clk 0:02:58.8]} 3. b3 {[%clk 0:03:03.7]} 3... Bg7 {[%clk 0:02:59.1]}
4. Bb2 {[%clk 0:03:05.3]} 4... O-O {[%clk 0:03:00.3]} 5. g3 {[%clk 0:03:06.6]}
5... d6 {[%clk 0:03:01]} 6. Bg2 {[%clk 0:03:08]} 6... c5 {[%clk 0:03:02.2]} 7.
O-O {[%clk 0:03:08.8]} 7... Nc6 {[%clk 0:03:03.4]} 8. d4 {[%clk 0:03:09.7]} 8...
cxd4 {[%clk 0:03:04.1]} 9. Nxd4 {[%clk 0:03:11.6]} 9... Bd7 {[%clk 0:03:05.6]}
10. Nc3 {[%clk 0:03:10.9]} 10... a6 {[%clk 0:02:58.5]} 11. Rc1 {[%clk
0:03:10.4]} 11... Qb6 {[%clk 0:02:48.3]} 12. Na4 {[%clk 0:03:04.6]} 12... Qa5
{[%clk 0:02:40.7]} 13. Bc3 {[%clk 0:02:48.6]} 13... Qd8 {[%clk 0:02:36.9]} 14.
Nb2 {[%clk 0:02:41.6]} 14... Rc8 {[%clk 0:02:29.8]} 15. e4 {[%clk 0:02:40.5]}
15... Nxd4 {[%clk 0:02:24.7]} 16. Bxd4 {[%clk 0:02:41.1]} 16... Bc6 {[%clk
0:02:24.8]} 17. Qe2 {[%clk 0:02:38.6]} 17... Nd7 {[%clk 0:02:18.1]} 18. Bxg7
{[%clk 0:02:36.6]} 18... Kxg7 {[%clk 0:02:20]} 19. f4 {[%clk 0:02:37]} 19... Nc5
{[%clk 0:02:12.5]} 20. b4 {[%clk 0:02:36.5]} 20... Na4 {[%clk 0:02:05]} 21. Nd3
{[%clk 0:02:35.8]} 21... b5 {[%clk 0:02:00.5]} 22. c5 {[%clk 0:02:33.5]} 22...
dxc5 {[%clk 0:01:59.4]} 23. bxc5 {[%clk 0:02:32.9]} 23... Qd4+ {[%clk
0:01:55.7]} 24. Kh1 {[%clk 0:02:33.6]} 24... Rfd8 {[%clk 0:01:56.6]} 25. Ne5
{[%clk 0:02:31.6]} 25... Nc3 {[%clk 0:01:35.4]} 26. Qb2 {[%clk 0:02:26.8]} 26...
b4 {[%clk 0:01:28.5]} 27. Nf3 {[%clk 0:02:24.3]} 27... Qxe4 {[%clk 0:01:24.9]}
28. Rfe1 {[%clk 0:02:20.4]} 28... Qc4 {[%clk 0:01:05]} 29. a3 {[%clk 0:02:17.3]}
29... a5 {[%clk 0:00:56.9]} 30. Rxe7 {[%clk 0:02:12.9]} 30... Qxc5 {[%clk
0:00:45]} 31. axb4 {[%clk 0:01:57]} 31... axb4 {[%clk 0:00:45.3]} 32. Re5 {[%clk
0:01:19]} 32... Qc4 {[%clk 0:00:43]} 33. h4 {[%clk 0:00:56.8]} 33... Rd3 {[%clk
0:00:43.2]} 34. Nd2 {[%clk 0:00:38.7]} 34... Bxg2+ {[%clk 0:00:37.3]} 35. Kxg2
{[%clk 0:00:40.6]} 35... Qc6+ {[%clk 0:00:33]} 36. Kh2 {[%clk 0:00:38.7]} 36...
Rcd8 {[%clk 0:00:28.4]} 37. Ne4 {[%clk 0:00:22]} 37... f5 {[%clk 0:00:14.7]} 38.
Qxb4 {[%clk 0:00:10.8]} 38... Rd2+ {[%clk 0:00:06.6]} 39. Nxd2 {[%clk
0:00:10.7]} 39... Rxd2+ {[%clk 0:00:06.7]} 40. Kh3 {[%clk 0:00:10.6]} 40... Qg2#
{[%clk 0:00:07.5]} 0-1

[Event "*** Titled Tuesday Blitz"]
[Site "Chess.com"]
[Date "2019.06.04"]
[Round "4"]
[White "gammagramma"]
[Black "FERNANDEZL1983"]
[Result "0-1"]
[WhiteElo "2637"]
[BlackElo "2430"]
[TimeControl "180+2"]
[EndTime "13:52:11 PDT"]
[Termination "FERNANDEZL1983 won by resignation"]

1. d4 {[%clk 0:03:01.9]} 1... Nf6 {[%clk 0:02:59.1]} 2. Nf3 {[%clk 0:02:59.6]}
2... g6 {[%clk 0:02:59.4]} 3. c4 {[%clk 0:02:58.9]} 3... Bg7 {[%clk 0:03:00.5]}
4. Nc3 {[%clk 0:03:00.1]} 4... O-O {[%clk 0:03:01.7]} 5. Bf4 {[%clk 0:03:01.3]}
5... d6 {[%clk 0:03:03.5]} 6. e3 {[%clk 0:03:02.5]} 6... Bg4 {[%clk 0:03:04]} 7.
h3 {[%clk 0:03:03.3]} 7... Bxf3 {[%clk 0:03:04.6]} 8. Qxf3 {[%clk 0:03:05.2]}
8... Nc6 {[%clk 0:03:05.4]} 9. Rd1 {[%clk 0:03:04.6]} 9... Qe8 {[%clk
0:02:58.2]} 10. Nd5 {[%clk 0:02:38.3]} 10... Rc8 {[%clk 0:02:57.4]} 11. e4
{[%clk 0:02:26.1]} 11... Nd7 {[%clk 0:02:53.4]} 12. Be3 {[%clk 0:02:20.6]} 12...
e6 {[%clk 0:02:53.6]} 13. Nc3 {[%clk 0:02:20.1]} 13... e5 {[%clk 0:02:53.7]} 14.
d5 {[%clk 0:02:20.6]} 14... Nd4 {[%clk 0:02:53.5]} 15. Qg3 {[%clk 0:02:14.5]}
15... f5 {[%clk 0:02:54.1]} 16. exf5 {[%clk 0:02:15.5]} 16... gxf5 {[%clk
0:02:48.3]} 17. Bh6 {[%clk 0:02:13.4]} 17... Qg6 {[%clk 0:02:44.8]} 18. Qxg6
{[%clk 0:02:06]} 18... hxg6 {[%clk 0:02:44]} 19. Bxg7 {[%clk 0:02:07.9]} 19...
Kxg7 {[%clk 0:02:44.8]} 20. Bd3 {[%clk 0:02:09.2]} 20... Nc5 {[%clk 0:02:44.7]}
21. O-O {[%clk 0:02:06]} 21... a5 {[%clk 0:02:34.7]} 22. Rfe1 {[%clk 0:02:04.6]}
22... f4 {[%clk 0:02:30.3]} 23. Ne4 {[%clk 0:02:02.9]} 23... Nxe4 {[%clk
0:02:30.3]} 24. Bxe4 {[%clk 0:02:02.4]} 24... Rf6 {[%clk 0:02:22.8]} 25. Rd3
{[%clk 0:02:02.9]} 25... Rh8 {[%clk 0:02:20.9]} 26. Rc1 {[%clk 0:02:00]} 26...
b6 {[%clk 0:02:20.7]} 27. Kf1 {[%clk 0:01:59.7]} 27... g5 {[%clk 0:02:17.6]} 28.
f3 {[%clk 0:01:59.6]} 28... Kh6 {[%clk 0:02:07.9]} 29. Kf2 {[%clk 0:01:59.8]}
29... Ra8 {[%clk 0:02:06.2]} 30. b3 {[%clk 0:01:56.4]} 30... Rff8 {[%clk
0:02:06.4]} 31. a3 {[%clk 0:01:56.8]} 31... Kg7 {[%clk 0:02:07.3]} 32. Ke1
{[%clk 0:01:56]} 32... Kf6 {[%clk 0:02:08.3]} 33. Rb1 {[%clk 0:01:54.3]} 33...
Rfb8 {[%clk 0:02:07.9]} 34. Kd2 {[%clk 0:01:55.2]} 34... b5 {[%clk 0:02:05.2]}
35. Rxd4 {[%clk 0:01:31.1]} 35... exd4 {[%clk 0:02:04.1]} 36. Kd3 {[%clk
0:01:32.1]} 36... bxc4+ {[%clk 0:02:04.4]} 37. Kxc4 {[%clk 0:01:31.3]} 37... Ra6
{[%clk 0:01:59.7]} 38. Kxd4 {[%clk 0:01:27.7]} 38... Rab6 {[%clk 0:01:59.1]} 39.
Kc4 {[%clk 0:01:27.8]} 39... Rb5 {[%clk 0:01:55.8]} 40. b4 {[%clk 0:01:28.6]}
40... axb4 {[%clk 0:01:56]} 41. axb4 {[%clk 0:01:30.5]} 41... R5b6 {[%clk
0:01:55]} 42. Rb2 {[%clk 0:01:15.8]} 42... Ra6 {[%clk 0:01:54.9]} 43. Kb3 {[%clk
0:01:12.2]} 43... Rba8 {[%clk 0:01:52.7]} 44. Re2 {[%clk 0:01:11.4]} 44... Ra3+
{[%clk 0:01:52.6]} 45. Kc4 {[%clk 0:01:12.6]} 45... Rb8 {[%clk 0:01:52.4]} 46.
Bc2 {[%clk 0:01:10.9]} 46... Re3 {[%clk 0:01:52.7]} 47. Rd2 {[%clk 0:01:10.5]}
47... Ke5 {[%clk 0:01:52.5]} 48. Be4 {[%clk 0:01:07.2]} 48... Ra8 {[%clk
0:01:39.7]} 49. Kb5 {[%clk 0:01:07.4]} 49... Rc3 {[%clk 0:01:39.9]} 50. Rb2
{[%clk 0:00:57.1]} 50... Rb8+ {[%clk 0:01:39.1]} 51. Ka4 {[%clk 0:00:55.3]}
51... Kd4 {[%clk 0:01:36.7]} 52. Rb1 {[%clk 0:00:46.8]} 52... Ke3 {[%clk
0:01:34.5]} 53. b5 {[%clk 0:00:43.8]} 53... Rc4+ {[%clk 0:01:31.8]} 54. Ka3
{[%clk 0:00:41.4]} 54... Kd4 {[%clk 0:01:31.5]} 55. Rb3 {[%clk 0:00:35.1]} 55...
Kc5 {[%clk 0:01:31.6]} 56. Kb2 {[%clk 0:00:35.7]} 56... Rb4 {[%clk 0:01:28.3]}
57. Kc3 {[%clk 0:00:34]} 57... Rxb3+ {[%clk 0:01:28.6]} 58. Kxb3 {[%clk
0:00:35.9]} 58... Rxb5+ {[%clk 0:01:29.8]} 59. Kc3 {[%clk 0:00:37.7]} 59... Ra5
{[%clk 0:01:30.9]} 0-1

[Event "*** Titled Tuesday Blitz"]
[Site "Chess.com"]
[Date "2019.06.04"]
[Round "4"]
[White "soolking67"]
[Black "adriangschnitzer"]
[Result "1-0"]
[WhiteElo "2552"]
[BlackElo "2472"]
[TimeControl "180+2"]
[EndTime "13:52:18 PDT"]
[Termination "soolking67 won by checkmate"]

1. d4 {[%clk 0:03:01.9]} 1... Nf6 {[%clk 0:03:00.6]} 2. Nf3 {[%clk 0:03:02.6]}
2... c5 {[%clk 0:03:01.6]} 3. c3 {[%clk 0:03:03.6]} 3... d5 {[%clk 0:02:59.2]}
4. Bf4 {[%clk 0:03:03.9]} 4... Nc6 {[%clk 0:02:58.5]} 5. e3 {[%clk 0:03:01.7]}
5... Qb6 {[%clk 0:02:58.3]} 6. Qc2 {[%clk 0:02:51.8]} 6... g6 {[%clk 0:02:58.2]}
7. dxc5 {[%clk 0:02:49.6]} 7... Qxc5 {[%clk 0:02:56.4]} 8. h3 {[%clk 0:02:43.8]}
8... Bf5 {[%clk 0:02:54.9]} 9. Bd3 {[%clk 0:02:35.7]} 9... Bxd3 {[%clk
0:02:53.9]} 10. Qxd3 {[%clk 0:02:36.8]} 10... Bg7 {[%clk 0:02:55.1]} 11. Nbd2
{[%clk 0:02:34.9]} 11... O-O {[%clk 0:02:55.2]} 12. O-O {[%clk 0:02:31.8]} 12...
Rfe8 {[%clk 0:02:52.4]} 13. e4 {[%clk 0:02:28.6]} 13... e5 {[%clk 0:02:45.5]}
14. Be3 {[%clk 0:02:24.8]} 14... Qd6 {[%clk 0:02:13.5]} 15. Qb5 {[%clk 0:02:13]}
15... Nxe4 {[%clk 0:02:08.8]} 16. Nxe4 {[%clk 0:02:08.8]} 16... dxe4 {[%clk
0:02:10.7]} 17. Ng5 {[%clk 0:02:09.5]} 17... Qd3 {[%clk 0:01:56.6]} 18. Qxb7
{[%clk 0:02:02.2]} 18... Ne7 {[%clk 0:01:49.3]} 19. Rad1 {[%clk 0:02:00.8]}
19... Qc4 {[%clk 0:01:31]} 20. Rd7 {[%clk 0:02:00.1]} 20... h6 {[%clk
0:01:25.4]} 21. Rxe7 {[%clk 0:01:48.1]} 21... hxg5 {[%clk 0:01:21.5]} 22. b3
{[%clk 0:01:46.4]} 22... Qc8 {[%clk 0:00:59.4]} 23. Rxf7 {[%clk 0:01:46.6]}
23... Qxb7 {[%clk 0:00:56.5]} 24. Rxb7 {[%clk 0:01:45.7]} 24... g4 {[%clk
0:00:56.8]} 25. hxg4 {[%clk 0:01:36.6]} 25... a5 {[%clk 0:00:56.7]} 26. Rd1
{[%clk 0:01:34]} 26... Red8 {[%clk 0:00:54.3]} 27. Rxd8+ {[%clk 0:01:31.8]}
27... Rxd8 {[%clk 0:00:56.2]} 28. Ra7 {[%clk 0:01:33.1]} 28... Rd3 {[%clk
0:00:45.5]} 29. c4 {[%clk 0:01:31.1]} 29... Bf8 {[%clk 0:00:34.9]} 30. Rxa5
{[%clk 0:01:30.6]} 30... Bb4 {[%clk 0:00:30.4]} 31. Rd5 {[%clk 0:01:05]} 31...
Bc3 {[%clk 0:00:19.4]} 32. Kf1 {[%clk 0:00:58.1]} 32... Bd4 {[%clk 0:00:18]} 33.
Ke2 {[%clk 0:00:53.4]} 33... Kf7 {[%clk 0:00:16.7]} 34. Bxd4 {[%clk 0:00:37.5]}
34... exd4 {[%clk 0:00:18.6]} 35. b4 {[%clk 0:00:36.5]} 35... Ke6 {[%clk
0:00:16.1]} 36. b5 {[%clk 0:00:33.5]} 36... Ra3 {[%clk 0:00:16.9]} 37. Rxd4
{[%clk 0:00:32.1]} 37... Ke5 {[%clk 0:00:13.7]} 38. Rd2 {[%clk 0:00:30.3]} 38...
Kf4 {[%clk 0:00:12.4]} 39. Rb2 {[%clk 0:00:28.5]} 39... e3 {[%clk 0:00:07.8]}
40. b6 {[%clk 0:00:23.5]} 40... exf2 {[%clk 0:00:08.1]} 41. Kxf2 {[%clk
0:00:24.8]} 41... Kxg4 {[%clk 0:00:05.5]} 42. b7 {[%clk 0:00:25.2]} 42... g5
{[%clk 0:00:05.7]} 43. b8=Q {[%clk 0:00:23.5]} 43... Ra5 {[%clk 0:00:06.8]} 44.
Qc8+ {[%clk 0:00:21.1]} 44... Rf5+ {[%clk 0:00:08.7]} 45. Qxf5+ {[%clk
0:00:21.1]} 45... Kh4 {[%clk 0:00:10.2]} 46. Qh3# {[%clk 0:00:21.4]} 1-0